lending/lending_fUSD_20260306
["ID","MTS","AMOUNT","RATE_DAILY","PERIOD"]
[407774031,1772788245469,-500.0,0.00018361,2]
[407774032,1772788245478,-489.0,0.00018361,2]
[407774033,1772788245488,-470.0,0.00018361,2]
[407774034,1772788245497,-500.0,0.00018361,2]
[407774035,1772788245507,-1414.0,0.00018361,2]
[407774036,1772788245516,-842.0,0.00018361,2]
[407774037,1772788245526,-160.0,0.000184,2]
[407774038,1772788245535,-2803.0,0.000184,2]
[407774039,1772788245545,-160.0,0.000184,2]
[407774040,1772788245555,-2803.0,0.000184,2]
[407774041,1772788245564,-2803.0,0.000184,2]
[407774042,1772788245577,-156.62,0.0001841,2]
[407774043,1772788245587,-500.0,0.00018411,2]
[407774044,1772788245596,-780.83,0.00018448,2]
[407774045,1772788245606,-500.0,0.00018467,2]
[407774046,1772788245616,-500.0,0.00018467,2]
[407774047,1772788245626,-420.0,0.00018467,2]
[407774048,1772788245635,-500.0,0.00018467,2]
[407774049,1772788245644,-500.0,0.00018467,2]
[407774050,1772788245654,-160.97642414,0.00018467,2]
[407774051,1772788245664,-500.0,0.00018467,2]
[407774052,1772788245673,-1333.15670856,0.00018479,2]
[407774053,1772788245683,-163.17298866,0.0001849,2]
[407774054,1772788245692,-500.62982044,0.0001849,2]
[407774055,1772788245702,-214.75,0.00018502,2]
[407774056,1772788245711,-9249.0,0.00018509,2]
[407774057,1772788245720,-2168.0,0.00018528,2]
[407774058,1772788245731,-1000.0,0.00018556,2]
[407774059,1772788245740,-1000.0,0.00018556,2]
[407774060,1772788245749,-6238.32,0.00018561,7]
[407774061,1772788245762,-623.83,0.00018561,7]
[407774062,1772788245772,-2500.0,0.00018584,2]
[407774063,1772788245781,-1000.0,0.00018601,2]
[407774064,1772788245791,-187.78006525,0.00018601,2]
[407774065,1772788245800,-282.71673119,0.00018601,2]
[407774066,1772788245810,-500.0,0.00018607,2]
[407774067,1772788245819,-219.58548492,0.00018612,2]
[407774068,1772788245829,-3000.0,0.00018612,2]
[407774069,1772788245838,-2000.0,0.00018616,2]
[407774070,1772788245848,-151.0,0.00018624,2]
[407774071,1772788245860,-202.72622012,0.00018625,2]
[407774072,1772788245869,-2710.0,0.0001863,2]
[407774073,1772788245878,-500.0,0.00018634,2]
[407774074,1772788245888,-1127.0,0.00018634,2]
[407774075,1772788245897,-691.0,0.00018634,2]
[407774076,1772788245907,-500.0,0.00018635,2]
[407774077,1772788245916,-1077.0,0.00018635,2]
[407774078,1772788245926,-500.0,0.00018635,2]
[407774079,1772788245935,-489.0,0.00018635,2]
[407774080,1772788245945,-470.0,0.00018635,2]
[407774081,1772788245954,-500.0,0.00018635,2]
[407774082,1772788245964,-1414.0,0.00018635,2]
[407774083,1772788245974,-842.0,0.00018635,2]
[407774084,1772788245984,-156.62,0.0001868,2]
[407774085,1772788245993,-2803.0,0.0001872,2]
[407774086,1772788246002,-847.0,0.0001872,2]
[407774087,1772788246011,-160.0,0.0001872,2]
[407774088,1772788246020,-2803.0,0.0001872,2]
[407774089,1772788246029,-2803.0,0.0001872,2]
[407774090,1772788246039,-264.07,0.00018722,2]
[407774091,1772788246049,-200.0,0.00018724,2]
[407774092,1772788246058,-500.0,0.00018741,2]
[407774093,1772788246068,-500.0,0.00018741,2]
[407774094,1772788246077,-420.0,0.00018741,2]
[407774095,1772788246086,-500.0,0.00018741,2]
[407774096,1772788246096,-500.0,0.00018741,2]
[407774097,1772788246105,-264.98345764,0.00018741,2]
[407774098,1772788246115,-153.26719895,0.0001876,2]
[407774099,1772788246124,-5532.0,0.000188,5]
[407774100,1772788246134,-500.0,0.00018881,2]
[407774101,1772788246146,-163.68,0.000189,3]
[407774102,1772788246156,-2710.0,0.00018904,2]
[407774103,1772788246165,-500.0,0.00018908,2]
[407774104,1772788246174,-1127.0,0.00018908,2]
[407774105,1772788246185,-691.0,0.00018908,2]
[407774106,1772788246194,-500.0,0.00018909,2]
[407774107,1772788246204,-1077.0,0.00018909,2]
[407774108,1772788246216,-500.0,0.00018909,2]
[407774109,1772788246225,-489.0,0.00018909,2]
[407774110,1772788246235,-470.0,0.00018909,2]
[407774111,1772788246244,-500.0,0.00018909,2]
[407774112,1772788246254,-1414.0,0.00018909,2]
[407774113,1772788246264,-842.0,0.00018909,2]
[407774114,1772788246273,-156.62,0.0001895,2]
[407774115,1772788246282,-222.47487,0.00018972,7]
[407774116,1772788246292,-350.0,0.00019,2]
[407774117,1772788246302,-15096.02609894,0.00019,2]
[407774118,1772788246311,-384.47576362,0.00019015,2]
[407774119,1772788246325,-500.0,0.00019015,2]
[407774120,1772788246334,-420.0,0.00019015,2]
[407774121,1772788246344,-500.0,0.00019015,2]
[407774122,1772788246353,-500.0,0.00019015,2]
[407774123,1772788246363,-160.0,0.0001904,2]
[407774124,1772788246372,-847.0,0.0001904,2]
[407774125,1772788246381,-2803.0,0.0001904,2]
[407774126,1772788246391,-847.0,0.0001904,2]
[407774127,1772788246400,-847.0,0.0001904,2]
[407774128,1772788246409,-2803.0,0.0001904,2]
[407774129,1772788246419,-2803.0,0.0001904,2]
[407774131,1772788246429,-1000.0,0.00019062,2]
[407774133,1772788246439,-172.74325605,0.00019072,2]
[407774134,1772788246448,-160.0,0.00019072,2]
[407774136,1772788246458,-422.23055131,0.00019076,2]
[407774138,1772788246467,-500.0,0.00019086,2]
[407774140,1772788246477,-500.0,0.00019086,2]
[407774142,1772788246486,-1500.0,0.00019104,2]
[407774143,1772788246495,-1500.0,0.00019104,2]
[407774144,1772788246505,-564.0,0.00019117,2]
[407774145,1772788246514,-150.0,0.00019117,2]
[407774146,1772788246524,-150.0,0.00019117,2]
[407774147,1772788246533,-150.0,0.00019117,2]
[407774148,1772788246542,-150.0,0.00019117,2]
[407774149,1772788246551,-280.0,0.00019117,2]
[407774150,1772788246561,-3000.0,0.00019132,2]
[407774151,1772788246570,-1000.0,0.00019149,2]
[407774152,1772788246579,-194.72792766,0.00019149,2]
[407774153,1772788246589,-293.17725025,0.00019149,2]
[407774154,1772788246599,-175.23,0.00019152,2]
[407774155,1772788246609,-628.31209333,0.00019155,2]
[407774156,1772788246618,-3500.0,0.0001916,2]
[407774157,1772788246628,-2500.0,0.00019164,2]
[407774158,1772788246637,-2710.0,0.00019178,2]
[407774159,1772788246647,-3000.0,0.00019178,2]
[407774160,1772788246656,-3000.0,0.00019178,7]
[407774161,1772788246666,-150.0,0.00019178,2]
[407774162,1772788246676,-500.0,0.0001918,2]
[407774163,1772788246685,-500.0,0.00019182,2]
[407774164,1772788246694,-1127.0,0.00019182,2]
[407774165,1772788246704,-691.0,0.00019182,2]
[407774166,1772788246713,-500.0,0.00019183,2]
[407774167,1772788246723,-1077.0,0.00019183,2]
[407774168,1772788246732,-245.19929244,0.00019183,2]
[407774169,1772788246742,-489.0,0.00019183,2]
[407774170,1772788246751,-470.0,0.00019183,2]
[407774171,1772788246762,-500.0,0.00019183,2]
[407774172,1772788246772,-1414.0,0.00019183,2]
[407774173,1772788246782,-842.0,0.00019183,2]
[407774174,1772788246791,-2000.0,0.000192,2]
[407774175,1772788246801,-1000.0,0.000192,2]
[407774176,1772788246810,-156.62,0.0001922,2]
[407774177,1772788246819,-175.23,0.00019265,2]
[407774178,1772788246829,-500.0,0.00019289,2]
[407774179,1772788246839,-500.0,0.00019289,2]
[407774180,1772788246848,-420.0,0.00019289,2]
[407774181,1772788246859,-500.0,0.00019289,2]
[407774182,1772788246869,-1000.0,0.00019294,2]
[407774183,1772788246878,-847.0,0.0001936,2]
[407774184,1772788246888,-2803.0,0.0001936,2]
[407774185,1772788246899,-847.0,0.0001936,2]
[407774186,1772788246909,-2888.0,0.0001936,2]
[407774187,1772788246919,-847.0,0.0001936,2]
[407774188,1772788246929,-2865.0,0.0001936,2]
[407774189,1772788246939,-175.22,0.00019378,2]
[407774190,1772788246950,-2710.0,0.00019452,2]
[407774191,1772788246959,-500.0,0.00019456,2]
[407774192,1772788246969,-1127.0,0.00019456,2]
[407774193,1772788246978,-691.0,0.00019456,2]
[407774194,1772788246988,-500.0,0.00019457,2]
[407774195,1772788246998,-1077.0,0.00019457,2]
[407774196,1772788247008,-489.0,0.00019457,2]
[407774197,1772788247019,-470.0,0.00019457,2]
[407774198,1772788247028,-500.0,0.00019457,2]
[407774199,1772788247039,-1414.0,0.00019457,2]
[407774200,1772788247049,-842.0,0.00019457,2]
[407774201,1772788247058,-186.0,0.00019484,7]
[407774202,1772788247068,-156.62,0.0001949,2]
[407774203,1772788247078,-500.0,0.00019563,2]
[407774204,1772788247088,-420.0,0.00019563,2]
[407774205,1772788247098,-500.0,0.00019563,2]
[407774206,1772788247110,-500.0,0.00019563,2]
[407774207,1772788247120,-1000.0,0.00019568,2]
[407774208,1772788247130,-1341.0,0.00019588,2]
[407774209,1772788247143,-1042.0,0.00019588,2]
[407774210,1772788247153,-3502.0,0.00019588,2]
[407774211,1772788247163,-1279.0,0.00019589,2]
[407774212,1772788247173,-150.31,0.00019589,2]
[407774213,1772788247185,-922.0,0.00019589,2]
[407774214,1772788247195,-1219.676,0.00019589,2]
[407774215,1772788247205,-5990.0,0.00019589,2]
[407774216,1772788247216,-2459.0,0.00019589,2]
[407774217,1772788247227,-1228.56471564,0.000196,2]
[407774218,1772788247237,-2000.0,0.000196,2]
[407774219,1772788247247,-494.64624274,0.00019634,2]
[407774220,1772788247256,-705.88057451,0.00019634,2]
[407774221,1772788247266,-2000.0,0.00019652,2]
[407774222,1772788247276,-2000.0,0.00019652,2]
[407774223,1772788247286,-3500.0,0.0001968,2]
[407774224,1772788247295,-2803.0,0.0001968,2]
[407774225,1772788247305,-847.0,0.0001968,2]
[407774226,1772788247315,-1000.9885,0.00019685,120]
[407774227,1772788247324,-1000.0,0.00019697,2]
[407774228,1772788247334,-201.93286099,0.00019697,2]
[407774229,1772788247344,-304.02480851,0.00019697,2]
[407774230,1772788247355,-9467.64683295,0.000197,2]
[407774231,1772788247365,-2336.46733329,0.00019708,2]
[407774232,1772788247375,-500.0,0.00019712,2]
[407774233,1772788247385,-2710.0,0.00019726,2]
[407774234,1772788247394,-250.0,0.00019726,2]
[407774235,1772788247404,-1000.0,0.00019728,2]
[407774236,1772788247414,-256.59221838,0.0001973,2]
[407774237,1772788247423,-1127.0,0.0001973,2]
[407774238,1772788247433,-691.0,0.0001973,2]
[407774239,1772788247443,-500.0,0.00019731,2]
[407774240,1772788247452,-1077.0,0.00019731,2]
[407774241,1772788247464,-489.0,0.00019731,2]
[407774242,1772788247474,-470.0,0.00019731,2]
[407774243,1772788247485,-500.0,0.00019731,2]
[407774244,1772788247495,-1414.0,0.00019731,2]
[407774245,1772788247506,-842.0,0.00019731,2]
[407774246,1772788247516,-156.62,0.0001976,2]
[407774247,1772788247526,-159.0,0.00019762,3]
[407774248,1772788247538,-1000.0,0.00019766,2]
[407774249,1772788247550,-173656.461,0.000198,2]
[407774250,1772788247561,-2000.0,0.000198,2]
[407774251,1772788247571,-153.26719895,0.00019803,2]
[407774252,1772788247582,-500.0,0.00019837,2]
[407774253,1772788247592,-420.0,0.00019837,2]
[407774254,1772788247604,-180.19786508,0.00019837,2]
[407774255,1772788247614,-500.0,0.00019837,2]
[407774256,1772788247626,-1000.0,0.00019842,2]
[407774257,1772788247637,-168.0,0.00019845,2]
[407774258,1772788247648,-1000.0,0.00019853,2]
[407774259,1772788247658,-500.0,0.00019873,2]
[407774260,1772788247671,-301.78790722,0.00019873,2]
[407774261,1772788247681,-500.0,0.00019873,2]
[407774262,1772788247692,-500.0,0.00019873,2]
[407774263,1772788247703,-25000.0,0.000199,3]
[407774264,1772788247713,-1000.0,0.000199,2]
[407774265,1772788247723,-21620.5503,0.000199,2]
[407774266,1772788247734,-19181.01999901,0.000199,7]
[407774267,1772788247745,-172.74325605,0.000199,7]
[407774268,1772788247756,-398.96258077,0.000199,2]
[407774269,1772788247766,-316.24495395,0.000199,2]
[407774270,1772788247776,-150.10507288,0.000199,2]
[407774271,1772788247786,-353.00077613,0.000199,2]
[407774272,1772788247796,-2710.0,0.000199,2]
[407774273,1772788247807,-11842.22879035,0.0001995,15]
[407774274,1772788247817,-400.0,0.0001997,2]
[407774275,1772788247827,-1044.42852228,0.00019971,2]
[407774276,1772788247837,-500.0,0.00019973,2]
[407774277,1772788247847,-119258.6679168,0.0001998,2]
[407774278,1772788247858,-1350.86262364,0.0001999,2]
[407774279,1772788247869,-422.23055131,0.0001999,2]
[407774280,1772788247879,-81549.6904143,0.00019995,2]
[407774281,1772788247889,-151.0,0.00019997,2]
[407774282,1772788247899,-300.0,0.00019999,2]
[407774283,1772788247909,-300.0,0.00019999,2]
[407774284,1772788247920,-150.0,0.00019999,2]
[407774285,1772788247930,-183.31183954,0.00019999,2]
[407774286,1772788247940,-2710.0,0.0002,2]
[407774287,1772788247950,-2292403.57551891,0.0002,2]
[407774288,1772788249025,-144071.64959383,0.0002,2]
[407774289,1772788249040,-38077.42638284,0.0002,2]
[407774290,1772788249063,-1260.97212852,0.0002,2]
[407774291,1772788249074,-3347.6304474,0.0002,2]
[407774292,1772788249085,-522.44232469,0.0002,2]
[407774293,1772788249096,-2482.00624495,0.0002,2]
[407774294,1772788249311,-15217.80290295,0.0002,2]
[407774295,1772788249323,-1866.3941417,0.0002,2]
[407774296,1772788249334,-1393.20373301,0.0002,2]
[407774297,1772788249377,-241997.66325796,0.0002,2]
[407774298,1772788249387,-318.11,0.0002,7]
[407774299,1772788249403,-150.0,0.0002,2]
[407774300,1772788249413,-270.0,0.0002,2]
[407774301,1772788249422,-200.0,0.0002,2]
[407774302,1772788249432,-150.0,0.0002,2]
[407774303,1772788249443,-150.166,0.0002,2]
[407774304,1772788249452,-150.188,0.0002,2]
[407774305,1772788249461,-150.109,0.0002,2]
[407774306,1772788249470,-150.0,0.0002,2]
[407774307,1772788249480,-150.0,0.0002,2]
[407774308,1772788249490,-150.0,0.0002,2]
[407774309,1772788249499,-2543.92107138,0.0002,2]
[407774310,1772788249508,-150.0,0.0002,2]
[407774311,1772788249518,-150.0,0.0002,2]
[407774312,1772788249528,-23686.3350072,0.0002,2]
[407774313,1772788249538,-150.149,0.0002,2]
[407774314,1772788249547,-150.0,0.0002,2]
[407774315,1772788249558,-2102.55515228,0.0002,2]
[407774316,1772788249568,-8266030.83575953,0.0002,2]
[407774317,1772788249581,-568.9,0.0002,2]
[407774318,1772788249731,-621.86898814,0.0002,2]
[407774319,1772788250040,-151.0,0.0001634,2]
[407774320,1772788250050,-151.0,0.000165,2]
[407774321,1772788250059,-151.0,0.000165,2]
[407774322,1772788250069,-151.0,0.000167,2]
[407774323,1772788250079,-414.0,0.00019589,2]
[407774324,1772788250089,-1604.90085612,0.0002,2]
[407774325,1772788250100,-510.13958758,0.0002,2]
[407774326,1772788250129,-326118.24516591,0.0002,2]
[407774327,1772788250152,-6285.0878836,0.0002,2]
[407774328,1772788250460,-1465.22462471,0.000139,2]
[407774329,1772788250470,-2953.65734526,0.0002,2]
[407774330,1772788250482,-28028.11980498,0.0002,2]
[407774331,1772788250494,-1180.128,0.0002,2]
[407774332,1772788250506,-487.369655,0.0002,2]
[407774333,1772788250518,-159473.37932789,0.0002,2]
[407774334,1772788250530,-792.12135032,0.0002,2]
[407774335,1772788250542,-720.69661148,0.0002,2]
[407774336,1772788250555,-45751.00000005,0.0002,2]
[407774337,1772788250570,-1708452.54616366,0.0002,2]
[407774342,1772789058227,-1200.0,7.998e-05,2]
[407774343,1772789058250,-250.0,7.999e-05,2]
[407774344,1772789058271,-217.0,7.999e-05,2]
[407774345,1772789058293,-190.0,7.999e-05,2]
[407774346,1772789058314,-300.0,7.999e-05,2]
[407774347,1772789058337,-300.0,7.999e-05,2]
[407774348,1772789058362,-150.0,7.999e-05,2]
[407774349,1772789101236,1200.0,7.999e-05,2]
[407774350,1772789216078,-250.0,7.999e-05,2]
[407774351,1772789216099,-69.98655709,8e-05,2]
[407774352,1772789221601,300.0,7.999e-05,2]
[407774353,1772789221831,272.0,7.999e-05,2]
[407774354,1772789223119,150.0,7.999e-05,2]
[407774355,1772789233102,-596.03488162,8e-05,2]
[407774356,1772789245087,-850.19908041,8e-05,2]
[407774357,1772789344603,10000.0,0.00017,120]
[407774358,1772789353101,-1274.31711269,8e-05,2]
[407774359,1772789353130,-307.44905594,8e-05,2]
[407774360,1772789353154,-698.73765731,8e-05,2]
[407774361,1772789353179,-500.0,8e-05,2]
[407774362,1772789353203,-500.0,8e-05,2]
[407774363,1772789353226,-500.0,8e-05,2]
[407774364,1772789353249,-500.0,8e-05,2]
[407774365,1772789353272,-500.0,8e-05,2]
[407774366,1772789353296,-500.0,8e-05,2]
[407774367,1772789353318,-500.0,8e-05,2]
[407774368,1772789353341,-500.0,8e-05,2]
[407774369,1772789353362,-695.33568358,8e-05,2]
[407774370,1772789353384,-500.0,8e-05,2]
[407774371,1772789353407,-500.0,8e-05,2]
[407774372,1772789353430,-500.0,8e-05,2]
[407774373,1772789353451,-500.0,8e-05,2]
[407774374,1772789353472,-500.0,8e-05,2]
[407774375,1772789353494,-500.0,8e-05,2]
[407774376,1772789353518,-500.0,8e-05,2]
[407774377,1772789353540,-584.38727441,8e-05,2]
[407774378,1772789353564,-975.24401555,8e-05,2]
[407774379,1772789353586,-500.0,8e-05,2]
[407774380,1772789353609,-500.0,8e-05,2]
[407774381,1772789353630,-667.50874734,8e-05,2]
[407774382,1772789353655,-500.0,8e-05,2]
[407774383,1772789353682,-500.0,8e-05,2]
[407774384,1772789353703,-500.0,8e-05,2]
[407774385,1772789353724,-695.33568358,8e-05,2]
[407774386,1772789353747,-500.0,8e-05,2]
[407774387,1772789353772,-500.0,8e-05,2]
[407774388,1772789353794,-500.0,8e-05,2]
[407774389,1772789353816,-759.10517996,8e-05,2]
[407774390,1772789353838,-1056.28,8e-05,2]
[407774391,1772789354203,-1431.284272,8.178e-05,2]
[407774392,1772789354226,-1056.28,8.274e-05,2]
[407774393,1772789354246,-1056.28,8.548e-05,2]
[407774394,1772789354268,-1200.0,8.799e-05,2]
[407774395,1772789354296,-255.0,8.799e-05,2]
[407774396,1772789354319,-250.0,8.799e-05,2]
[407774397,1772789354347,-5000.0,8.799e-05,2]
[407774398,1772789354375,-250.0,8.8e-05,2]
[407774399,1772789354398,-4005.23607467,8.8e-05,2]
[407774400,1772789354419,-1056.28,8.822e-05,2]
[407774401,1772789354441,-1056.28,9.096e-05,2]
[407774402,1772789354480,-140.31326297,9.194e-05,2]
[407774403,1772789357084,-45.08246203,9.194e-05,2]
[407774404,1772789357105,-1056.28,9.37e-05,2]
[407774405,1772789357125,-1056.28,9.644e-05,2]
[407774406,1772789357146,-433.0,9.679e-05,2]
[407774407,1772789357167,-307.60434397,9.918e-05,2]
[407774408,1772789364102,-748.67565603,9.918e-05,2]
[407774409,1772789364126,-222.47487,9.984e-05,2]
[407774410,1772789364146,-1056.28,0.00010192,2]
[407774411,1772789364165,-1056.28,0.00010466,2]
[407774412,1772789364186,-200.0,0.00010468,2]
[407774413,1772789364207,-500.0,0.00010503,2]
[407774414,1772789364227,-500.0,0.00010503,2]
[407774415,1772789364247,-500.0,0.00010503,2]
[407774416,1772789364267,-500.0,0.00010503,2]
[407774417,1772789364287,-500.0,0.00010503,2]
[407774418,1772789364309,-151.0,0.00010503,2]
[407774419,1772789364329,-500.0,0.00010503,2]
[407774420,1772789364352,-151.0,0.00010503,2]
[407774421,1772789364374,-500.0,0.00010503,2]
[407774422,1772789364796,-151.0,0.00010503,2]
[407774423,1772789364821,-500.0,0.00010503,2]
[407774424,1772789364843,-151.0,0.00010503,2]
[407774425,1772789364864,-151.0,0.00010503,2]
[407774426,1772789364886,-500.0,0.00010503,2]
[407774427,1772789364908,-151.0,0.00010503,2]
[407774428,1772789364929,-500.0,0.00010503,2]
[407774429,1772789364950,-151.0,0.00010503,2]
[407774430,1772789364971,-500.0,0.00010503,2]
[407774431,1772789364993,-151.0,0.00010503,2]
[407774432,1772789365014,-8.28947397,0.00010503,2]
[407774433,1772789366081,-142.71052603,0.00010503,2]
[407774434,1772789366103,-151.0,0.00010503,2]
[407774435,1772789366125,-151.0,0.00010503,2]
[407774436,1772789366146,-500.0,0.00010503,2]
[407774437,1772789366168,-500.0,0.00010503,2]
[407774438,1772789366190,-500.0,0.00010503,2]
[407774439,1772789366212,-500.0,0.00010503,2]
[407774440,1772789366234,-500.0,0.00010503,2]
[407774441,1772789366255,-604.81659273,0.00010503,2]
[407774442,1772789366276,-151.0,0.00010503,2]
[407774443,1772789366297,-151.0,0.00010503,2]
[407774444,1772789366318,-151.0,0.00010503,2]
[407774445,1772789366339,-151.0,0.00010503,2]
[407774446,1772789366360,-151.0,0.00010503,2]
[407774447,1772789366379,-151.0,0.00010503,2]
[407774448,1772789366400,-151.0,0.00010503,2]
[407774449,1772789366422,-151.0,0.00010503,2]
[407774450,1772789366442,-151.0,0.00010503,2]
[407774451,1772789366463,-151.0,0.00010503,2]
[407774452,1772789366485,-151.0,0.00010503,2]
[407774453,1772789366506,-151.0,0.00010503,2]
[407774454,1772789366530,-151.0,0.00010503,2]
[407774455,1772789366550,-151.0,0.00010503,2]
[407774456,1772789366572,-151.0,0.00010503,2]
[407774457,1772789366593,-151.0,0.00010503,2]
[407774458,1772789366615,-151.0,0.00010503,2]
[407774459,1772789366635,-151.0,0.00010503,2]
[407774460,1772789366658,-151.0,0.00010503,2]
[407774461,1772789366678,-151.0,0.00010503,2]
[407774462,1772789366699,-151.0,0.00010503,2]
[407774463,1772789366719,-1000.0,0.00010508,2]
[407774464,1772789366740,-2279.47288124,0.00010509,2]
[407774465,1772789367118,-10000.0,0.00010509,2]
[407774466,1772789368587,-10000.0,0.00010509,2]
[407774467,1772789370057,-10000.0,0.00010509,2]
[407774468,1772789372225,-10000.0,0.00010509,2]
[407774482,1772789431597,-236.0,0.00010509,2]
[407774484,1772789431607,-27.36265892,0.00010509,3]
[407774489,1772789431652,-126.63734108,0.00010509,3]
[407774491,1772789431664,-161.0,0.00010509,3]
[407774493,1772789431675,-154.0,0.00010509,3]
[407774495,1772789431685,-1692.6867672,0.00010509,2]
[407774497,1772789431696,-1056.28,0.0001074,2]
[407774499,1772789431705,-250.0,0.00010809,2]
[407774501,1772789431714,-1056.38119296,0.00011014,2]
[407774503,1772789431725,-289.0,0.00011108,2]
[407774505,1772789431735,-298.78884901,0.00011347,2]
[407774507,1772789431744,-500.0,0.00011347,2]
[407774508,1772789431753,-642.97646691,0.00011347,2]
[407774509,1772789431764,-300.34586323,0.0001156,2]
[407774510,1772789431773,-250.0,0.0001156,2]
[407774511,1772789431786,-500.0,0.0001156,2]
[407774512,1772789431796,-500.0,0.00011654,2]
[407774513,1772789431805,-150.0,0.00011654,14]
[407774514,1772789431814,-2679.16,0.00011699,2]
[407774515,1772789431824,-150.0,0.00011766,2]
[407774516,1772789431833,-2660.89642746,0.000119,2]
[407774517,1772789431843,-300.0,0.00011999,2]
[407774518,1772789431852,-500.0,0.00012,2]
[407774519,1772789431861,-500.0,0.00012,2]
[407774520,1772789431871,-500.0,0.00012,2]
[407774522,1772789431881,-500.0,0.00012,2]
[407774524,1772789431891,-500.0,0.00012,2]
[407774526,1772789431901,-500.0,0.00012,2]
[407774528,1772789431911,-500.0,0.00012,2]
[407774530,1772789431920,-500.0,0.00012,2]
[407774532,1772789431930,-500.0,0.00012,2]
[407774534,1772789431939,-500.0,0.00012,2]
[407774536,1772789431949,-500.0,0.00012,2]
[407774538,1772789431958,-500.0,0.00012,2]
[407774540,1772789431967,-500.0,0.00012,2]
[407774541,1772789431980,-500.0,0.00012,2]
[407774542,1772789431990,-500.0,0.00012,2]
[407774543,1772789431999,-500.0,0.00012,2]
[407774544,1772789432008,-500.0,0.00012,2]
[407774545,1772789432018,-500.0,0.00012,2]
[407774546,1772789432027,-500.0,0.00012,2]
[407774547,1772789432037,-500.0,0.00012,2]
[407774548,1772789432046,-500.0,0.00012,2]
[407774549,1772789432055,-500.0,0.00012,2]
[407774550,1772789432064,-500.0,0.00012,2]
[407774551,1772789432074,-500.0,0.00012,2]
[407774552,1772789432083,-505.49393616,0.00012,2]
[407774553,1772789432092,-373.07221866,0.00012,2]
[407774554,1772789432102,-200.0,0.00012,2]
[407774555,1772789432111,-500.0,0.00012,2]
[407774556,1772789432120,-500.0,0.00012,2]
[407774557,1772789432130,-500.0,0.00012,2]
[407774558,1772789432139,-500.0,0.00012,2]
[407774559,1772789432152,-516.66,0.00012,2]
[407774560,1772789432161,-253.45935133,0.00012,2]
[407774561,1772789432171,-500.0,0.00012,2]
[407774562,1772789432183,-500.0,0.00012,2]
[407774563,1772789432192,-500.0,0.00012,2]
[407774564,1772789432201,-500.0,0.00012,2]
[407774565,1772789432211,-500.0,0.00012,2]
[407774566,1772789432220,-500.0,0.00012,2]
[407774567,1772789432229,-500.0,0.00012,2]
[407774568,1772789432239,-500.0,0.00012,2]
[407774569,1772789432248,-500.0,0.00012,2]
[407774570,1772789432258,-500.0,0.00012,2]
[407774571,1772789432267,-500.0,0.00012,2]
[407774572,1772789432277,-500.0,0.00012,2]
[407774573,1772789432286,-500.0,0.00012,2]
[407774574,1772789432295,-3376.86,0.00012031,2]
[407774575,1772789432304,-248.4,0.00012062,2]
[407774576,1772789432314,-1768.54,0.00012087,2]
[407774577,1772789432323,-260.71,0.00012087,2]